[Event "NOR-ch Various 2019"]
[Site "Larvik"]
[Date "2019.07.11"]
[Round "7.4"]
[White "Mottang, Harald"]
[Black "Teigen, Tore"]
[Result "0-1"]
[ECO "D91"]
[WhiteElo "1559"]
[BlackElo "1551"]
[Annotator "NA"]
[PlyCount "70"]
[EventDate "2019.07.06"]
[EventType "swiss"]
[EventCountry "NOR"]
[SourceTitle "playchess.com"]
[Source "ChessBase"]
[SourceQuality "1"]
[TimeControl "40/5400+30:1800+30"]

1. Nf3 {[%emt 0:00:00]} d5 {[%emt 0:00:01]} 2. c4 {[%emt 0:00:18]} c6 {[%emt 0:00:17]} 3. d4 {[%emt 0:00:37]} Nf6 {[%emt 0:00:34]} 4. Nc3 {[%emt 0:00:13]} g6 {[%emt 0:00:58]} 5. Bg5 {[%emt 0:02:33]} Bg7 {[%emt 0:00:47]} 6. e3 {[%emt 0:00:51]} Bf5 {[%emt 0:01:09]} 7. Be2 {[%emt 0:03:56]} O-O {[%emt 0:04:50]} 8. O-O {[%emt 0:00:41]} h6 {[%emt 0:07:05]} 9. Bh4 {[%emt 0:00:51]} g5 {[%emt 0:08:34]} 10. Bg3 {[%emt 0:01:03]} e6 {[%emt 0:00:51]} 11. cxd5 {[%emt 0:05:13]} cxd5 {[%emt 0:01:13]} 12. h3 {[%emt 0:02:45]} Nc6 {[%emt 0:01:12]} 13. a3 {[%emt 0:06:46]} Rc8 {[%emt 0:03:51]} 14. Nb5 {[%emt 0:01:11]} Ne8 {[%emt 0:02:32]} 15. h4 {[%emt 0:04:45]} a6 {[%emt 0:03:23]} 16. Nc3 {[%emt 0:01:02]} f6 {[%emt 0:05:16]} 17. hxg5 {[%emt 0:02:02]} hxg5 {[%emt 0:00:28]} 18. Nh2 {[%emt 0:01:37]} Nd6 {[%emt 0:02:20]} 19. Bd3 {[%emt 0:05:26]} Ne4 {[%emt 0:02:39]} 20. Bxe4 {[%emt 0:02:19]} Bxe4 {[%emt 0:03:29]} 21. Nxe4 {[%emt 0:01:38]} dxe4 {[%emt 0:00:10]} 22. Qb3 {[%emt 0:03:49]} Qe7 {[%emt 0:01:29]} 23. Rad1 {[%emt 0:01:06]} Rfd8 {[%emt 0:01:17]} 24. Ng4 {[%emt 0:06:12]} Rd5 {[%emt 0:05:18]} 25. f3 {[%emt 0:05:32]} exf3 {[%emt 0:06:39]} 26. Rxf3 {[%emt 0:04:38]} Na5 {[%emt 0:15:05]} 27. Qd3 {[%emt 0:04:09]} f5 {[%emt 0:03:22]} 28. Ne5 {[%emt 0:09:22]} Rcd8 {[%emt 0:04:21]} 29. Qe2 {[%emt 0:05:16]} g4 {[%emt 0:02:04]} 30. Rff1 {[%emt 0:01:20]} Qe8 {[%emt 0:05:46]} 31. Kf2 {[%emt 0:01:51]} b5 {[%emt 0:01:57]} 32. Rh1 {[%emt 0:01:42]} Rc8 {[%emt 0:01:16]} 33. Rh2 {[%emt 0:05:56]} Nc4 {[%emt 0:00:42]} 34. Rdh1 {[%emt 0:02:17]} Nd6 {[%emt 0:00:56]} 35. Nd3 {[%emt 0:03:07]} Ne4+ {[%emt 0:00:29]} 0-1

[Event "NOR-ch Various 2019"]
[Site "Larvik"]
[Date "2019.07.11"]
[Round "7.5"]
[White "Vigdal, Per Kr"]
[Black "Sorensen, Simen"]
[Result "0-1"]
[ECO "B48"]
[WhiteElo "1926"]
[BlackElo "1979"]
[Annotator "NA"]
[PlyCount "46"]
[EventDate "2019.07.06"]
[EventType "swiss"]
[EventCountry "NOR"]
[SourceTitle "playchess.com"]
[Source "ChessBase"]
[SourceQuality "1"]
[TimeControl "40/5400+30:1800+30"]

1. e4 {[%emt 0:00:00]} c5 {[%emt 0:00:00]} 2. Nf3 {[%emt 0:00:05]} e6 {[%emt 0:00:00]} 3. d4 {[%emt 0:00:46]} cxd4 {[%emt 0:00:00]} 4. Nxd4 {[%emt 0:00:08]} Nc6 {[%emt 0:00:06]} 5. Nc3 {[%emt 0:02:17]} Qc7 {[%emt 0:00:54]} 6. Be3 {[%emt 0:05:20]} a6 {[%emt 0:00:23]} 7. Qd2 {[%emt 0:10:04]} Nf6 {[%emt 0:01:22]} 8. f3 {[%emt 0:00:56]} Bb4 {[%emt 0:07:53]} 9. a3 {[%emt 0:01:46]} Be7 {[%emt 0:00:47]} 10. g4 {[%emt 0:01:02]} b5 {[%emt 0:10:22]} 11. Nce2 {[%emt 0:08:42]} Ne5 {[%emt 0:03:46]} 12. Ng3 {[%emt 0:00:35]} h6 {[%emt 0:03:18]} 13. Kf2 {[%emt 0:07:11]} Bb7 {[%emt 0:04:00]} 14. Bd3 {[%emt 0:03:51]} d5 {[%emt 0:06:15]} 15. h3 {[%emt 0:07:15]} dxe4 {[%emt 0:04:14]} 16. fxe4 {[%emt 0:00:22]} Rd8 {[%emt 0:01:48]} 17. g5 {[%emt 0:01:12]} hxg5 {[%emt 0:00:43]} 18. b4 {[%emt 0:01:50]} Nc4 {[%emt 0:14:37]} 19. Qe2 {[%emt 0:00:38]} Bd6 {[%emt 0:01:51]} 20. Ngf5 {[%emt 0:00:48]} exf5 {[%emt 0:01:09]} 21. Nxf5 {[%emt 0:00:05]} Nxe3 {[%emt 0:01:53]} 22. Qxe3 {[%emt 0:00:56]} Bf4 {[%emt 0:00:42]} 23. Qe2 {[%emt 0:00:41]} g6 {[%emt 0:01:19]} 0-1

[Event "NOR-ch Various 2019"]
[Site "Larvik"]
[Date "2019.07.11"]
[Round "7.6"]
[White "Kvendseth, Cornelius"]
[Black "Svendsen, Per Gisle"]
[Result "1-0"]
[ECO "A04"]
[WhiteElo "1964"]
[BlackElo "1929"]
[Annotator "NA"]
[PlyCount "71"]
[EventDate "2019.07.06"]
[EventType "swiss"]
[EventCountry "NOR"]
[SourceTitle "playchess.com"]
[Source "ChessBase"]
[SourceQuality "1"]
[TimeControl "40/5400+30:1800+30"]

1. Nf3 {[%emt 0:00:00]} c5 {[%emt 0:00:30]} 2. g3 {[%emt 0:00:53]} Nc6 {[%emt 0:01:08]} 3. d4 {[%emt 0:01:42]} cxd4 {[%emt 0:02:20]} 4. Nxd4 {[%emt 0:00:13]} e5 {[%emt 0:02:13]} 5. Nxc6 {[%emt 0:01:02]} bxc6 {[%emt 0:00:39]} 6. Bg2 {[%emt 0:01:02]} Nf6 {[%emt 0:09:24]} 7. O-O {[%emt 0:03:30]} Be7 {[%emt 0:06:51]} 8. b3 {[%emt 0:03:16]} O-O {[%emt 0:02:42]} 9. Bb2 {[%emt 0:01:39]} Qc7 {[%emt 0:03:12]} 10. c4 {[%emt 0:04:25]} d5 {[%emt 0:13:46]} 11. cxd5 {[%emt 0:05:21]} cxd5 {[%emt 0:00:06]} 12. Bxd5 {[%emt 0:04:17]} Nxd5 {[%emt 0:00:18]} 13. Qxd5 {[%emt 0:00:19]} Bd6 {[%emt 0:08:02]} 14. Rd1 {[%emt 0:04:17]} Bb7 {[%emt 0:02:36]} 15. Qc4 {[%emt 0:06:22]} Qb6 {[%emt 0:06:16]} 16. Nc3 {[%emt 0:02:59]} Bc5 {[%emt 0:05:43]} 17. Na4 {[%emt 0:09:29]} Bxf2+ {[%emt 0:04:32]} 18. Kf1 {[%emt 0:00:02]} Qf6 {[%emt 0:00:27]} 19. Bxe5 {[%emt 0:00:08]} Qxe5 {[%emt 0:02:02]} 20. Kxf2 {[%emt 0:00:09]} Rac8 {[%emt 0:01:11]} 21. Qf4 {[%emt 0:01:47]} Qe6 {[%emt 0:00:08]} 22. Rd3 {[%emt 0:07:44]} Qh3 {[%emt 0:02:20]} 23. Nc3 {[%emt 0:04:27]} Rfe8 {[%emt 0:04:49]} 24. Ke1 {[%emt 0:05:33]} Qxh2 {[%emt 0:02:07]} 25. Kd2 {[%emt 0:00:54]} Ba6 {[%emt 0:04:08]} 26. Re3 {[%emt 0:05:01]} Red8+ {[%emt 0:00:41]} 27. Kc2 {[%emt 0:01:00]} Qh5 {[%emt 0:00:14]} 28. Rf1 {[%emt 0:03:15]} Bxe2 {[%emt 0:02:23]} 29. Re1 {[%emt 0:02:32]} Qg6+ {[%emt 0:00:28]} 30. Kb2 {[%emt 0:00:52]} Rd2+ {[%emt 0:02:17]} 31. Ka3 {[%emt 0:02:26]} Qa6+ {[%emt 0:00:47]} 32. Na4 {[%emt 0:00:47]} h6 {[%emt 0:00:55]} 33. Re7 {[%emt 0:01:09]} Qg6 {[%emt 0:07:53]} 34. Qxd2 {[%emt 0:00:22]} Rc2 {[%emt 0:00:13]} 35. Qd8+ {[%emt 0:00:32]} Kh7 {[%emt 0:00:06]} 36. R7xe2 {[%emt 0:00:13]} 1-0

[Event "NOR-ch Various 2019"]
[Site "Larvik"]
[Date "2019.07.11"]
[Round "7.7"]
[White "Grondahl, David A"]
[Black "Westrum, Kim Roger Hansen"]
[Result "1-0"]
[ECO "A00"]
[WhiteElo "1730"]
[BlackElo "1731"]
[Annotator "NA"]
[PlyCount "91"]
[EventDate "2019.07.06"]
[EventType "swiss"]
[EventCountry "NOR"]
[SourceTitle "playchess.com"]
[Source "ChessBase"]
[SourceQuality "1"]
[TimeControl "40/5400+30:1800+30"]

1. e4 {[%emt 0:00:00]} d5 {[%emt 0:00:00]} 2. Nc3 {[%emt 0:00:00]} d4 {[%emt 0:05:52]} 3. Nce2 {[%emt 0:00:05]} e5 {[%emt 0:00:13]} 4. Ng3 {[%emt 0:00:05]} Be6 {[%emt 0:02:41]} 5. Nf3 {[%emt 0:04:52]} Bd6 {[%emt 0:01:09]} 6. Bb5+ {[%emt 0:01:29]} c6 {[%emt 0:02:38]} 7. Ba4 {[%emt 0:00:11]} Nd7 {[%emt 0:01:44]} 8. Bb3 {[%emt 0:01:51]} Bxb3 {[%emt 0:03:06]} 9. axb3 {[%emt 0:00:20]} Ne7 {[%emt 0:03:49]} 10. d3 {[%emt 0:00:10]} Qb6 {[%emt 0:26:22]} 11. Bd2 {[%emt 0:06:57]} Qc7 {[%emt 0:10:08]} 12. O-O {[%emt 0:01:12]} b6 {[%emt 0:03:18]} 13. c4 {[%emt 0:07:20]} g6 {[%emt 0:06:06]} 14. h4 {[%emt 0:12:13]} O-O-O {[%emt 0:01:40]} 15. b4 {[%emt 0:01:37]} Qb7 {[%emt 0:01:04]} 16. Ng5 {[%emt 0:02:30]} Rdf8 {[%emt 0:00:51]} 17. c5 {[%emt 0:00:15]} bxc5 {[%emt 0:03:01]} 18. Qb3 {[%emt 0:00:58]} c4 {[%emt 0:10:49]} 19. Qxc4 {[%emt 0:01:54]} Nb6 {[%emt 0:00:07]} 20. Qa2 {[%emt 0:00:09]} Rhg8 {[%emt 0:02:05]} 21. Nxh7 {[%emt 0:02:16]} Rd8 {[%emt 0:00:00]} 22. Ng5 {[%emt 0:02:15]} f6 {[%emt 0:00:51]} 23. Nf7 {[%emt 0:00:15]} Rd7 {[%emt 0:00:06]} 24. Qe6 {[%emt 0:01:00]} Qc7 {[%emt 0:00:32]} 25. Qxf6 {[%emt 0:02:29]} Kb8 {[%emt 0:01:16]} 26. Ng5 {[%emt 0:04:40]} Qc8 {[%emt 0:04:05]} 27. Rfc1 {[%emt 0:02:39]} Na8 {[%emt 0:02:22]} 28. b5 {[%emt 0:01:26]} Rf8 {[%emt 0:03:48]} 29. Qg7 {[%emt 0:04:08]} Qe8 {[%emt 0:04:32]} 30. h5 {[%emt 0:04:07]} gxh5 {[%emt 0:00:00]} 31. Qh6 {[%emt 0:01:55]} Rh8 {[%emt 0:00:00]} 32. Qe6 {[%emt 0:01:55]} cxb5 {[%emt 0:00:00]} 33. Nf7 {[%emt 0:00:31]} Nc7 {[%emt 0:00:00]} 34. Rxc7 {[%emt 0:01:19]} Rxc7 {[%emt 0:00:52]} 35. Nxh8 {[%emt 0:00:34]} Qxh8 {[%emt 0:00:31]} 36. Qxd6 {[%emt 0:00:11]} h4 {[%emt 0:00:07]} 37. Rxa7 {[%emt 0:03:52]} Kxa7 {[%emt 0:01:59]} 38. Qxc7+ {[%emt 0:00:06]} Ka8 {[%emt 0:00:29]} 39. Qa5+ {[%emt 0:00:04]} Kb7 {[%emt 0:00:45]} 40. Qxb5+ {[%emt 0:00:07]} Kc8 {[%emt 0:00:31]} 41. Qa6+ {[%emt 0:30:41]} Kd7 {[%emt 0:01:21]} 42. Qb7+ {[%emt 0:00:00]} Ke6 {[%emt 0:00:25]} 43. Bg5 {[%emt 0:00:00]} Qd8 {[%emt 0:00:57]} 44. Qxe7+ {[%emt 0:00:00]} Qxe7 {[%emt 0:00:09]} 45. Bxe7 {[%emt 0:00:00]} Kxe7 {[%emt 0:00:10]} 46. Nf5+ {[%emt 0:00:00]} 1-0

[Event "NOR-ch Various 2019"]
[Site "Larvik"]
[Date "2019.07.11"]
[Round "7.8"]
[White "Evjen, Kristian Thunestvedt"]
[Black "Jorgensen, Bengt Arne"]
[Result "1-0"]
[ECO "A16"]
[WhiteElo "1700"]
[BlackElo "1727"]
[Annotator "NA"]
[PlyCount "73"]
[EventDate "2019.07.06"]
[EventType "swiss"]
[EventCountry "NOR"]
[SourceTitle "playchess.com"]
[Source "ChessBase"]
[SourceQuality "1"]
[TimeControl "40/5400+30:1800+30"]

1. c4 {[%emt 0:00:00]} c6 {[%emt 0:00:00]} 2. Nc3 {[%emt 0:00:00]} Nf6 {[%emt 0:00:06]} 3. e4 {[%emt 0:00:09]} d5 {[%emt 0:08:54]} 4. e5 {[%emt 0:05:51]} Ng8 {[%emt 0:09:57]} 5. d4 {[%emt 0:04:42]} Bf5 {[%emt 0:00:43]} 6. Qb3 {[%emt 0:10:24]} Qc8 {[%emt 0:28:52]} 7. cxd5 {[%emt 0:02:40]} cxd5 {[%emt 0:00:27]} 8. Qxd5 {[%emt 0:02:40]} a6 {[%emt 0:01:24]} 9. Nf3 {[%emt 0:05:35]} Nc6 {[%emt 0:01:18]} 10. a3 {[%emt 0:00:51]} e6 {[%emt 0:01:38]} 11. Qb3 {[%emt 0:01:11]} Bg4 {[%emt 0:02:35]} 12. Be3 {[%emt 0:02:21]} Qd7 {[%emt 0:03:17]} 13. Rd1 {[%emt 0:05:34]} Bxf3 {[%emt 0:03:38]} 14. gxf3 {[%emt 0:00:07]} Rd8 {[%emt 0:00:38]} 15. Be2 {[%emt 0:05:40]} Nge7 {[%emt 0:00:38]} 16. f4 {[%emt 0:06:34]} b5 {[%emt 0:01:38]} 17. Bf3 {[%emt 0:12:26]} Na5 {[%emt 0:00:14]} 18. Qc2 {[%emt 0:00:15]} Rc8 {[%emt 0:00:18]} 19. Qe2 {[%emt 0:00:39]} Nc4 {[%emt 0:00:42]} 20. d5 {[%emt 0:02:43]} exd5 {[%emt 0:01:14]} 21. Nxd5 {[%emt 0:00:32]} Nxd5 {[%emt 0:01:08]} 22. Bxd5 {[%emt 0:03:49]} Qf5 {[%emt 0:03:16]} 23. Bb7 {[%emt 0:06:40]} Nxe3 {[%emt 0:03:46]} 24. Qxe3 {[%emt 0:01:06]} Rc4 {[%emt 0:02:27]} 25. Qb6 {[%emt 0:05:20]} Re4+ {[%emt 0:00:27]} 26. Bxe4 {[%emt 0:00:10]} Qxe4+ {[%emt 0:00:13]} 27. Kd2 {[%emt 0:00:16]} Bb4+ {[%emt 0:03:47]} 28. axb4 {[%emt 0:01:46]} O-O {[%emt 0:00:10]} 29. Qe3 {[%emt 0:01:44]} Rd8+ {[%emt 0:02:35]} 30. Ke2 {[%emt 0:00:56]} Qc4+ {[%emt 0:00:32]} 31. Kf3 {[%emt 0:00:46]} Rc8 {[%emt 0:03:02]} 32. Rd4 {[%emt 0:01:12]} Qc6+ {[%emt 0:01:03]} 33. Qe4 {[%emt 0:00:25]} Qh6 {[%emt 0:01:03]} 34. Rhd1 {[%emt 0:01:05]} Qh4 {[%emt 0:04:06]} 35. Qf5 {[%emt 0:01:17]} Re8 {[%emt 0:00:34]} 36. Rd7 {[%emt 0:00:54]} f6 {[%emt 0:01:02]} 37. Rd8 {[%emt 0:01:07]} 1-0

[Event "NOR-ch Various 2019"]
[Site "Larvik"]
[Date "2019.07.11"]
[Round "7.9"]
[White "Bo, Torgeir H"]
[Black "Wullum, Robin"]
[Result "0-1"]
[ECO "C78"]
[WhiteElo "1567"]
[BlackElo "1452"]
[Annotator "NA"]
[PlyCount "60"]
[EventDate "2019.07.06"]
[EventType "swiss"]
[EventCountry "NOR"]
[SourceTitle "playchess.com"]
[Source "ChessBase"]
[SourceQuality "1"]
[TimeControl "40/5400+30:1800+30"]

1. e4 {[%emt 0:00:00]} e5 {[%emt 0:00:12]} 2. Nf3 {[%emt 0:00:00]} Nc6 {[%emt 0:00:06]} 3. Bb5 {[%emt 0:00:21]} a6 {[%emt 0:00:20]} 4. Ba4 {[%emt 0:00:13]} Nf6 {[%emt 0:03:51]} 5. O-O {[%emt 0:01:31]} b5 {[%emt 0:01:09]} 6. Bb3 {[%emt 0:00:16]} Bc5 {[%emt 0:00:20]} 7. c3 {[%emt 0:09:37]} O-O {[%emt 0:03:18]} 8. d4 {[%emt 0:01:14]} Bd6 {[%emt 0:00:26]} 9. dxe5 {[%emt 0:03:41]} Bxe5 {[%emt 0:00:26]} 10. Nxe5 {[%emt 0:00:50]} Nxe5 {[%emt 0:00:02]} 11. Bg5 {[%emt 0:02:04]} h6 {[%emt 0:00:12]} 12. Bxh6 {[%emt 0:06:08]} gxh6 {[%emt 0:00:21]} 13. f4 {[%emt 0:00:08]} Nc4 {[%emt 0:01:43]} 14. Rf3 {[%emt 0:14:08]} Nxe4 {[%emt 0:01:11]} 15. Qd5 {[%emt 0:00:33]} Bb7 {[%emt 0:07:11]} 16. Qxb7 {[%emt 0:09:15]} d5 {[%emt 0:00:14]} 17. Bxc4 {[%emt 0:01:28]} bxc4 {[%emt 0:00:07]} 18. Qc6 {[%emt 0:00:22]} Qh4 {[%emt 0:01:07]} 19. Nd2 {[%emt 0:04:13]} Nxd2 {[%emt 0:02:02]} 20. Rh3 {[%emt 0:09:15]} Qxf4 {[%emt 0:00:20]} 21. Rxh6 {[%emt 0:01:12]} Rae8 {[%emt 0:01:28]} 22. g3 {[%emt 0:06:16]} Qe3+ {[%emt 0:04:42]} 23. Kg2 {[%emt 0:03:57]} Qe4+ {[%emt 0:00:58]} 24. Kh3 {[%emt 0:00:42]} Qf5+ {[%emt 0:00:13]} 25. g4 {[%emt 0:00:34]} Re3+ {[%emt 0:00:10]} 26. Kh4 {[%emt 0:00:25]} Nf3+ {[%emt 0:00:46]} 27. Kg3 {[%emt 0:00:55]} Ne5+ {[%emt 0:00:07]} 28. Kg2 {[%emt 0:00:19]} Qxg4+ {[%emt 0:00:07]} 29. Kf2 {[%emt 0:00:19]} Re2+ {[%emt 0:00:18]} 30. Kf1 {[%emt 0:00:13]} Qg2# {[%emt 0:00:03]} 0-1

[Event "NOR-ch Various 2019"]
[Site "Larvik"]
[Date "2019.07.11"]
[Round "7.10"]
[White "Carlin, Tormod"]
[Black "Johansen, Aleksander"]
[Result "1-0"]
[ECO "D20"]
[WhiteElo "1426"]
[BlackElo "1518"]
[Annotator "NA"]
[PlyCount "122"]
[EventDate "2019.07.06"]
[EventType "swiss"]
[EventCountry "NOR"]
[SourceTitle "playchess.com"]
[Source "ChessBase"]
[SourceQuality "1"]
[TimeControl "40/5400+30:1800+30"]

1. d4 {[%emt 0:00:00]} d5 {[%emt 0:00:00]} 2. c4 {[%emt 0:00:00]} dxc4 {[%emt 0:00:00]} 3. e3 {[%emt 0:00:00]} e5 {[%emt 0:01:03]} 4. Bxc4 {[%emt 0:00:03]} Nc6 {[%emt 0:00:24]} 5. Nf3 {[%emt 0:00:39]} e4 {[%emt 0:00:08]} 6. Nfd2 {[%emt 0:01:41]} Qg5 {[%emt 0:00:44]} 7. Rg1 {[%emt 0:08:23]} Nf6 {[%emt 0:02:49]} 8. Nc3 {[%emt 0:00:44]} Qg6 {[%emt 0:04:59]} 9. Qc2 {[%emt 0:11:24]} Nxd4 {[%emt 0:14:07]} 10. exd4 {[%emt 0:02:59]} e3 {[%emt 0:00:21]} 11. Bd3 {[%emt 0:08:54]} exd2+ {[%emt 0:00:44]} 12. Bxd2 {[%emt 0:00:10]} Qg4 {[%emt 0:04:18]} 13. Be3 {[%emt 0:04:58]} c6 {[%emt 0:11:33]} 14. Be2 {[%emt 0:03:29]} Qf5 {[%emt 0:14:14]} 15. Bd3 {[%emt 0:01:18]} Qa5 {[%emt 0:02:35]} 16. O-O-O {[%emt 0:13:17]} Be6 {[%emt 0:03:49]} 17. a3 {[%emt 0:08:02]} Bd6 {[%emt 0:05:11]} 18. g3 {[%emt 0:01:32]} O-O {[%emt 0:06:39]} 19. h4 {[%emt 0:00:52]} g6 {[%emt 0:03:37]} 20. Ne4 {[%emt 0:06:26]} Nxe4 {[%emt 0:05:40]} 21. Bxe4 {[%emt 0:00:08]} Rac8 {[%emt 0:03:10]} 22. Kb1 {[%emt 0:00:58]} Bd5 {[%emt 0:02:38]} 23. Bxd5 {[%emt 0:02:28]} Qxd5 {[%emt 0:00:02]} 24. Rh1 {[%emt 0:00:46]} Rfe8 {[%emt 0:02:19]} 25. h5 {[%emt 0:02:13]} Qe4 {[%emt 0:00:45]} 26. hxg6 {[%emt 0:01:51]} fxg6 {[%emt 0:01:13]} 27. Rhe1 {[%emt 0:03:03]} Qd5 {[%emt 0:03:14]} 28. Ka1 {[%emt 0:04:24]} Re6 {[%emt 0:01:30]} 29. Qc3 {[%emt 0:03:19]} Rce8 {[%emt 0:00:43]} 30. Bh6 {[%emt 0:02:58]} Re2 {[%emt 0:02:51]} 31. Rxe2 {[%emt 0:00:45]} Rxe2 {[%emt 0:00:02]} 32. Be3 {[%emt 0:01:30]} Qb5 {[%emt 0:03:27]} 33. d5 {[%emt 0:01:47]} c5 {[%emt 0:01:03]} 34. Qf6 {[%emt 0:00:27]} Be7 {[%emt 0:00:27]} 35. Qe6+ {[%emt 0:00:46]} Kf8 {[%emt 0:00:13]} 36. Bh6+ {[%emt 0:00:56]} Ke8 {[%emt 0:00:06]} 37. Qg8+ {[%emt 0:02:37]} Kd7 {[%emt 0:00:07]} 38. Rb1 {[%emt 0:00:33]} Rxf2 {[%emt 0:01:35]} 39. Qxh7 {[%emt 0:00:15]} Qe2 {[%emt 0:00:30]} 40. Bf4 {[%emt 0:00:52]} Qe4 {[%emt 0:00:35]} 41. d6 {[%emt 0:30:31]} Rxf4 {[%emt 0:07:45]} 42. gxf4 {[%emt 0:00:00]} Kxd6 {[%emt 0:00:19]} 43. Rg1 {[%emt 0:00:00]} Bf6 {[%emt 0:15:53]} 44. Qxg6 {[%emt 0:00:00]} Qd4 {[%emt 0:03:47]} 45. Qg2 {[%emt 0:00:00]} Kc7 {[%emt 0:01:16]} 46. Rf1 {[%emt 0:00:00]} a6 {[%emt 0:00:54]} 47. Qf2 {[%emt 0:00:00]} Qc4 {[%emt 0:01:31]} 48. f5 {[%emt 0:00:00]} Kb6 {[%emt 0:01:07]} 49. Rd1 {[%emt 0:00:00]} Bd4 {[%emt 0:01:14]} 50. Qf3 {[%emt 0:00:00]} Qb5 {[%emt 0:00:57]} 51. Rb1 {[%emt 0:00:00]} Bf6 {[%emt 0:00:37]} 52. Qe4 {[%emt 0:00:00]} Qb3 {[%emt 0:00:29]} 53. Qe6+ {[%emt 0:00:00]} Qxe6 {[%emt 0:00:02]} 54. fxe6 {[%emt 0:00:00]} Kc7 {[%emt 0:00:51]} 55. Rd1 {[%emt 0:00:00]} Bd4 {[%emt 0:00:36]} 56. Re1 {[%emt 0:00:00]} Kd8 {[%emt 0:00:22]} 57. Kb1 {[%emt 0:00:00]} Ke7 {[%emt 0:00:36]} 58. Kc2 {[%emt 0:00:00]} b5 {[%emt 0:00:38]} 59. b3 {[%emt 0:00:00]} a5 {[%emt 0:00:33]} 60. Re4 {[%emt 0:00:00]} Bf6 {[%emt 0:00:32]} 61. a4 {[%emt 0:00:00]} bxa4 {[%emt 0:00:36]} 1-0

[Event "NOR-ch Various 2019"]
[Site "Larvik"]
[Date "2019.07.11"]
[Round "7.11"]
[White "Nordlov, Jorgen"]
[Black "Edoy, Rune"]
[Result "1-0"]
[ECO "D26"]
[WhiteElo "1263"]
[BlackElo "1319"]
[Annotator "NA"]
[PlyCount "163"]
[EventDate "2019.07.06"]
[EventType "swiss"]
[EventCountry "NOR"]
[SourceTitle "playchess.com"]
[Source "ChessBase"]
[SourceQuality "1"]
[TimeControl "40/5400+30:1800+30"]

1. d4 {[%emt 0:00:00]} d5 {[%emt 0:00:00]} 2. c4 {[%emt 0:00:00]} dxc4 {[%emt 0:00:00]} 3. e3 {[%emt 0:00:00]} Nf6 {[%emt 0:00:08]} 4. Bxc4 {[%emt 0:00:29]} e6 {[%emt 0:00:48]} 5. Nf3 {[%emt 0:00:27]} Be7 {[%emt 0:00:30]} 6. Nc3 {[%emt 0:00:36]} O-O {[%emt 0:00:15]} 7. e4 {[%emt 0:01:59]} Bb4 {[%emt 0:01:14]} 8. Bg5 {[%emt 0:01:51]} h6 {[%emt 0:02:09]} 9. e5 {[%emt 0:00:28]} hxg5 {[%emt 0:00:20]} 10. exf6 {[%emt 0:00:42]} Qxf6 {[%emt 0:00:31]} 11. O-O {[%emt 0:00:28]} Bxc3 {[%emt 0:01:08]} 12. bxc3 {[%emt 0:00:27]} b6 {[%emt 0:00:51]} 13. Qd2 {[%emt 0:00:52]} Qf4 {[%emt 0:02:31]} 14. Qxf4 {[%emt 0:03:26]} gxf4 {[%emt 0:00:18]} 15. Rae1 {[%emt 0:00:31]} Bb7 {[%emt 0:01:15]} 16. Re5 {[%emt 0:02:29]} Nd7 {[%emt 0:05:50]} 17. Rh5 {[%emt 0:02:18]} Bxf3 {[%emt 0:04:02]} 18. gxf3 {[%emt 0:00:03]} Nf6 {[%emt 0:01:00]} 19. Rh4 {[%emt 0:01:16]} g5 {[%emt 0:00:25]} 20. Rh3 {[%emt 0:00:35]} Kg7 {[%emt 0:00:59]} 21. Bd3 {[%emt 0:00:54]} Rh8 {[%emt 0:00:15]} 22. Rxh8 {[%emt 0:01:35]} Rxh8 {[%emt 0:00:07]} 23. Kg2 {[%emt 0:00:57]} Rd8 {[%emt 0:02:53]} 24. Rg1 {[%emt 0:00:56]} c5 {[%emt 0:00:20]} 25. Kf1 {[%emt 0:00:17]} Kh6 {[%emt 0:01:23]} 26. h4 {[%emt 0:00:53]} gxh4 {[%emt 0:01:09]} 27. Ke2 {[%emt 0:03:47]} cxd4 {[%emt 0:00:44]} 28. c4 {[%emt 0:00:41]} Rg8 {[%emt 0:01:07]} 29. Rh1 {[%emt 0:08:28]} Kh5 {[%emt 0:00:10]} 30. Ke1 {[%emt 0:02:03]} Rg5 {[%emt 0:00:31]} 31. Bc2 {[%emt 0:06:17]} Rc5 {[%emt 0:00:59]} 32. Bb3 {[%emt 0:00:34]} Rg5 {[%emt 0:02:22]} 33. Rh2 {[%emt 0:03:12]} Nd7 {[%emt 0:01:19]} 34. Kd2 {[%emt 0:01:47]} Ne5 {[%emt 0:00:50]} 35. Bd1 {[%emt 0:04:04]} Rg1 {[%emt 0:04:12]} 36. Ke2 {[%emt 0:06:07]} d3+ {[%emt 0:01:14]} 37. Kd2 {[%emt 0:00:51]} Kg5 {[%emt 0:00:56]} 38. a4 {[%emt 0:04:57]} a5 {[%emt 0:00:05]} 39. Rh3 {[%emt 0:00:46]} Rg2 {[%emt 0:01:04]} 40. Ke1 {[%emt 0:02:24]} Nxc4 {[%emt 0:00:11]} 41. Kf1 {[%emt 0:30:42]} Ne3+ {[%emt 0:37:27]} 42. fxe3 {[%emt 0:01:18]} Rd2 {[%emt 0:02:29]} 43. exf4+ {[%emt 0:03:10]} Kxf4 {[%emt 0:04:39]} 44. Rxh4+ {[%emt 0:02:15]} Kg5 {[%emt 0:02:50]} 45. Rg4+ {[%emt 0:01:36]} Kf5 {[%emt 0:00:36]} 46. Bb3 {[%emt 0:01:33]} Rb2 {[%emt 0:01:31]} 47. Bd1 {[%emt 0:04:35]} e5 {[%emt 0:03:37]} 48. Rc4 {[%emt 0:01:46]} f6 {[%emt 0:02:48]} 49. Rc3 {[%emt 0:03:41]} e4 {[%emt 0:02:23]} 50. fxe4+ {[%emt 0:00:39]} Kxe4 {[%emt 0:00:11]} 51. Rc6 {[%emt 0:02:01]} Rh2 {[%emt 0:04:43]} 52. Kg1 {[%emt 0:05:13]} Rd2 {[%emt 0:00:28]} 53. Bh5 {[%emt 0:00:33]} Rc2 {[%emt 0:01:55]} 54. Rxf6 {[%emt 0:01:39]} Rc1+ {[%emt 0:01:59]} 55. Kf2 {[%emt 0:01:39]} d2 {[%emt 0:07:12]} 56. Rd6 {[%emt 0:01:57]} Ra1 {[%emt 0:15:11]} 57. Bf3+ {[%emt 0:04:02]} Ke5 {[%emt 0:00:52]} 58. Rd5+ {[%emt 0:01:04]} Ke6 {[%emt 0:00:44]} 59. Rd4 {[%emt 0:00:51]} Ke5 {[%emt 0:00:42]} 60. Ke3 {[%emt 0:00:13]} Re1+ {[%emt 0:00:30]} 61. Kxd2 {[%emt 0:02:18]} Kxd4 {[%emt 0:02:38]} 62. Kxe1 {[%emt 0:00:11]} Kc3 {[%emt 0:00:15]} 63. Be2 {[%emt 0:00:12]} Kb4 {[%emt 0:00:59]} 64. Bb5 {[%emt 0:00:17]} Kc3 {[%emt 0:00:51]} 65. Kf2 {[%emt 0:01:12]} Kd4 {[%emt 0:00:45]} 66. Kf3 {[%emt 0:00:45]} Ke5 {[%emt 0:00:53]} 67. Be2 {[%emt 0:01:26]} Kd5 {[%emt 0:01:18]} 68. Kf4 {[%emt 0:00:31]} Kc5 {[%emt 0:01:28]} 69. Bb5 {[%emt 0:00:29]} Kd5 {[%emt 0:00:07]} 70. Kf5 {[%emt 0:00:11]} Kd6 {[%emt 0:00:26]} 71. Kf6 {[%emt 0:00:36]} Kc7 {[%emt 0:00:31]} 72. Ke7 {[%emt 0:00:28]} Kc8 {[%emt 0:01:20]} 73. Kd6 {[%emt 0:00:58]} Kb7 {[%emt 0:00:45]} 74. Kd7 {[%emt 0:00:34]} Ka7 {[%emt 0:01:11]} 75. Kc6 {[%emt 0:00:56]} Kb8 {[%emt 0:01:13]} 76. Kxb6 {[%emt 0:00:18]} Ka8 {[%emt 0:00:06]} 77. Bc6+ {[%emt 0:00:57]} Kb8 {[%emt 0:00:03]} 78. Kxa5 {[%emt 0:00:52]} Ka7 {[%emt 0:00:06]} 79. Kb5 {[%emt 0:00:26]} Kb8 {[%emt 0:00:05]} 80. Kb6 {[%emt 0:00:22]} Kc8 {[%emt 0:00:24]} 81. a5 {[%emt 0:00:07]} Kb8 {[%emt 0:00:22]} 82. a6 {[%emt 0:00:09]} 1-0